[Event "CZE-ch U16 Girls 2020"]
[Site "Kouty nad Desnou"]
[Date "2020.03.10"]
[Round "5.7"]
[White "Ruzickova, Ema"]
[Black "Habinova, Alice"]
[Result "0-1"]
[ECO "C90"]
[WhiteElo "1409"]
[BlackElo "1474"]
[Annotator "NA"]
[PlyCount "92"]
[EventDate "2020.03.07"]
[EventCountry "CZE"]
[SourceTitle "playchess.com"]
[Source "ChessBase"]
[SourceQuality "1"]
[TimeControl "5400+30"]

1. e4 {[%emt 0:00:00]} e5 {[%emt 0:00:00]} 2. Nf3 {[%emt 0:00:00]} Nc6 {[%emt 0:00:00]} 3. Bb5 {[%emt 0:00:00]} a6 {[%emt 0:00:00]} 4. Ba4 {[%emt 0:00:00]} d6 {[%emt 0:00:03]} 5. O-O {[%emt 0:01:38]} Bg4 {[%emt 0:00:10]} 6. c3 {[%emt 0:02:24]} Nf6 {[%emt 0:01:24]} 7. Re1 {[%emt 0:04:04]} Be7 {[%emt 0:01:36]} 8. d3 {[%emt 0:04:52]} O-O {[%emt 0:02:07]} 9. Nbd2 {[%emt 0:02:59]} b5 {[%emt 0:02:42]} 10. Bb3 {[%emt 0:01:44]} d5 {[%emt 0:03:41]} 11. h3 {[%emt 0:13:43]} dxe4 {[%emt 0:13:11]} 12. dxe4 {[%emt 0:03:03]} Bh5 {[%emt 0:00:59]} 13. Nf1 {[%emt 0:01:59]} Qxd1 {[%emt 0:08:18]} 14. Bxd1 {[%emt 0:00:20]} Rad8 {[%emt 0:00:59]} 15. Ng3 {[%emt 0:02:23]} Bg6 {[%emt 0:01:00]} 16. Bc2 {[%emt 0:02:58]} Bc5 {[%emt 0:05:31]} 17. Be3 {[%emt 0:07:31]} Bxe3 {[%emt 0:00:57]} 18. Rxe3 {[%emt 0:00:13]} Rd7 {[%emt 0:02:01]} 19. Re2 {[%emt 0:11:03]} Rfd8 {[%emt 0:02:42]} 20. a3 {[%emt 0:07:53]} h6 {[%emt 0:03:29]} 21. Rae1 {[%emt 0:08:38]} Nh5 {[%emt 0:05:26]} 22. Nxh5 {[%emt 0:01:54]} Bxh5 {[%emt 0:00:26]} 23. g4 {[%emt 0:00:26]} Bg6 {[%emt 0:00:41]} 24. Kf1 {[%emt 0:04:02]} Rd6 {[%emt 0:01:28]} 25. Re3 {[%emt 0:01:06]} R8d7 {[%emt 0:01:31]} 26. R1e2 {[%emt 0:01:27]} f6 {[%emt 0:01:37]} 27. b4 {[%emt 0:04:07]} Bf7 {[%emt 0:04:20]} 28. Ke1 {[%emt 0:00:38]} Nd8 {[%emt 0:01:52]} 29. Rd2 {[%emt 0:01:31]} Ne6 {[%emt 0:02:58]} 30. Kd1 {[%emt 0:03:44]} Nf4 {[%emt 0:03:11]} 31. Kc1 {[%emt 0:04:43]} Bc4 {[%emt 0:01:49]} 32. Re1 {[%emt 0:00:20]} Nxh3 {[%emt 0:02:11]} 33. Rxd6 {[%emt 0:02:53]} Rxd6 {[%emt 0:00:42]} 34. Nd2 {[%emt 0:01:42]} Be6 {[%emt 0:01:34]} 35. f3 {[%emt 0:00:38]} Nf4 {[%emt 0:01:32]} 36. Re3 {[%emt 0:00:10]} g6 {[%emt 0:02:44]} 37. a4 {[%emt 0:00:00]} h5 {[%emt 0:00:00]} 38. gxh5 {[%emt 0:00:00]} gxh5 {[%emt 0:00:00]} 39. Nf1 {[%emt 0:00:00]} Bc4 {[%emt 0:00:00]} 40. Ng3 {[%emt 0:00:00]} Ng2 {[%emt 0:00:00]} 41. Nf5 {[%emt 0:00:00]} Nxe3 {[%emt 0:00:00]} 42. Nxd6 {[%emt 0:00:00]} cxd6 {[%emt 0:00:00]} 43. axb5 {[%emt 0:00:00]} axb5 {[%emt 0:00:00]} 44. Bd1 {[%emt 0:00:00]} h4 {[%emt 0:00:00]} 45. Be2 {[%emt 0:00:00]} h3 {[%emt 0:00:00]} 46. Bxc4+ {[%emt 0:00:00]} Nxc4 {[%emt 0:00:00]} 0-1

[Event "CZE-ch U16 Girls 2020"]
[Site "Kouty nad Desnou"]
[Date "2020.03.10"]
[Round "5.8"]
[White "Vlachynska, Lilian"]
[Black "Merinska, Julie"]
[Result "1-0"]
[ECO "C46"]
[WhiteElo "1224"]
[BlackElo "1182"]
[Annotator "NA"]
[PlyCount "91"]
[EventDate "2020.03.07"]
[EventCountry "CZE"]
[SourceTitle "playchess.com"]
[Source "ChessBase"]
[SourceQuality "1"]
[TimeControl "5400+30"]

1. e4 {[%emt 0:00:00]} e5 {[%emt 0:00:00]} 2. Nf3 {[%emt 0:00:00]} Nc6 {[%emt 0:00:00]} 3. Nc3 {[%emt 0:00:00]} Bc5 {[%emt 0:00:42]} 4. Nxe5 {[%emt 0:00:00]} Nxe5 {[%emt 0:03:19]} 5. d4 {[%emt 0:00:00]} Bxd4 {[%emt 0:04:52]} 6. Qxd4 {[%emt 0:00:14]} Qf6 {[%emt 0:02:40]} 7. Qe3 {[%emt 0:09:06]} Ne7 {[%emt 0:08:51]} 8. f4 {[%emt 0:06:47]} N5c6 {[%emt 0:03:58]} 9. Bc4 {[%emt 0:02:39]} O-O {[%emt 0:05:17]} 10. O-O {[%emt 0:05:52]} Qd4 {[%emt 0:06:36]} 11. Bd3 {[%emt 0:07:46]} d6 {[%emt 0:03:42]} 12. Nb5 {[%emt 0:05:39]} Qxe3+ {[%emt 0:08:04]} 13. Bxe3 {[%emt 0:00:16]} Bd7 {[%emt 0:05:26]} 14. Nxc7 {[%emt 0:03:19]} Rac8 {[%emt 0:05:09]} 15. Nb5 {[%emt 0:01:17]} d5 {[%emt 0:01:27]} 16. Nxa7 {[%emt 0:03:23]} Nxa7 {[%emt 0:01:01]} 17. Bxa7 {[%emt 0:00:06]} dxe4 {[%emt 0:01:25]} 18. Bxe4 {[%emt 0:00:20]} Bc6 {[%emt 0:01:27]} 19. Bxc6 {[%emt 0:00:30]} Nxc6 {[%emt 0:00:35]} 20. Bc5 {[%emt 0:02:04]} Rfe8 {[%emt 0:01:40]} 21. c3 {[%emt 0:01:20]} Re2 {[%emt 0:03:06]} 22. Rf2 {[%emt 0:01:19]} Rce8 {[%emt 0:00:48]} 23. Rxe2 {[%emt 0:00:26]} Rxe2 {[%emt 0:00:07]} 24. Ba3 {[%emt 0:00:47]} b5 {[%emt 0:05:04]} 25. Rd1 {[%emt 0:01:08]} g6 {[%emt 0:03:42]} 26. Kf1 {[%emt 0:01:47]} Re4 {[%emt 0:03:06]} 27. g3 {[%emt 0:01:38]} Kg7 {[%emt 0:01:26]} 28. Kf2 {[%emt 0:00:49]} Kf6 {[%emt 0:03:43]} 29. Rd6+ {[%emt 0:00:26]} Re6 {[%emt 0:00:32]} 30. Rxe6+ {[%emt 0:00:03]} Kxe6 {[%emt 0:00:22]} 31. Ke3 {[%emt 0:00:10]} Kd5 {[%emt 0:01:40]} 32. Kd3 {[%emt 0:00:27]} Na5 {[%emt 0:02:08]} 33. b3 {[%emt 0:01:26]} f5 {[%emt 0:03:45]} 34. Bb4 {[%emt 0:01:36]} Nc6 {[%emt 0:03:12]} 35. a3 {[%emt 0:01:37]} Ke6 {[%emt 0:04:22]} 36. c4 {[%emt 0:01:40]} bxc4+ {[%emt 0:01:07]} 37. Kxc4 {[%emt 0:00:12]} Kd7 {[%emt 0:01:51]} 38. Bc3 {[%emt 0:00:28]} Kd6 {[%emt 0:01:29]} 39. b4 {[%emt 0:00:26]} Na7 {[%emt 0:01:36]} 40. a4 {[%emt 0:00:23]} Nc8 {[%emt 0:00:07]} 41. a5 {[%emt 0:00:36]} Na7 {[%emt 0:00:00]} 42. b5 {[%emt 0:00:00]} Kd7 {[%emt 0:00:00]} 43. Kc5 {[%emt 0:00:00]} Nc8 {[%emt 0:00:00]} 44. Be5 {[%emt 0:00:00]} Na7 {[%emt 0:00:00]} 45. b6 {[%emt 0:00:00]} Nc6 {[%emt 0:00:00]} 46. a6 {[%emt 0:00:00]} 1-0

[Event "CZE-ch U16 Girls 2020"]
[Site "Kouty nad Desnou"]
[Date "2020.03.10"]
[Round "5.9"]
[White "Saskova, Renata"]
[Black "Zilava, Anezka"]
[Result "0-1"]
[ECO "C45"]
[WhiteElo "1191"]
[BlackElo "1224"]
[Annotator "NA"]
[PlyCount "108"]
[EventDate "2020.03.07"]
[EventCountry "CZE"]
[SourceTitle "playchess.com"]
[Source "ChessBase"]
[SourceQuality "1"]
[TimeControl "5400+30"]

1. e4 {[%emt 0:00:00]} e5 {[%emt 0:00:03]} 2. Nf3 {[%emt 0:00:00]} Nc6 {[%emt 0:00:00]} 3. d4 {[%emt 0:00:00]} exd4 {[%emt 0:00:00]} 4. Nxd4 {[%emt 0:00:00]} Bc5 {[%emt 0:00:31]} 5. Be3 {[%emt 0:00:30]} Qf6 {[%emt 0:00:49]} 6. c3 {[%emt 0:00:11]} Nge7 {[%emt 0:00:44]} 7. Be2 {[%emt 0:00:32]} b6 {[%emt 0:02:50]} 8. b4 {[%emt 0:08:19]} Bd6 {[%emt 0:02:48]} 9. Bf3 {[%emt 0:05:12]} Ne5 {[%emt 0:05:29]} 10. O-O {[%emt 0:12:38]} O-O {[%emt 0:05:37]} 11. Nd2 {[%emt 0:05:23]} Bb7 {[%emt 0:05:17]} 12. Rc1 {[%emt 0:01:53]} N7g6 {[%emt 0:05:59]} 13. h3 {[%emt 0:06:01]} Rfe8 {[%emt 0:08:37]} 14. Re1 {[%emt 0:08:42]} Nd3 {[%emt 0:00:38]} 15. e5 {[%emt 0:16:41]} Bxf3 {[%emt 0:01:00]} 16. N2xf3 {[%emt 0:00:54]} Ndxe5 {[%emt 0:00:41]} 17. Nxe5 {[%emt 0:05:37]} Nxe5 {[%emt 0:02:11]} 18. Rc2 {[%emt 0:02:13]} Qg6 {[%emt 0:04:07]} 19. Nb5 {[%emt 0:06:24]} Nf3+ {[%emt 0:01:37]} 20. Qxf3 {[%emt 0:06:31]} Qxc2 {[%emt 0:00:19]} 21. a3 {[%emt 0:02:20]} Qe4 {[%emt 0:03:21]} 22. Qd1 {[%emt 0:04:00]} Qc6 {[%emt 0:02:06]} 23. Qd3 {[%emt 0:01:52]} a6 {[%emt 0:02:19]} 24. Nd4 {[%emt 0:01:07]} Qe4 {[%emt 0:01:08]} 25. Qd2 {[%emt 0:00:49]} Qe5 {[%emt 0:01:59]} 26. Nf3 {[%emt 0:01:03]} Qh5 {[%emt 0:01:43]} 27. Nd4 {[%emt 0:01:52]} c5 {[%emt 0:01:13]} 28. Nf3 {[%emt 0:01:18]} Re6 {[%emt 0:01:16]} 29. Kf1 {[%emt 0:00:36]} h6 {[%emt 0:00:46]} 30. Rd1 {[%emt 0:01:16]} Ra7 {[%emt 0:02:35]} 31. Qe2 {[%emt 0:00:38]} Qf5 {[%emt 0:02:38]} 32. Qc4 {[%emt 0:00:53]} Be7 {[%emt 0:04:40]} 33. Rd5 {[%emt 0:00:32]} Qb1+ {[%emt 0:01:03]} 34. Ne1 {[%emt 0:00:19]} Qe4 {[%emt 0:00:28]} 35. Qxe4 {[%emt 0:00:32]} Rxe4 {[%emt 0:00:03]} 36. bxc5 {[%emt 0:00:13]} Bxc5 {[%emt 0:01:11]} 37. Bxc5 {[%emt 0:00:26]} bxc5 {[%emt 0:00:36]} 38. Rxc5 {[%emt 0:00:24]} Kf8 {[%emt 0:00:18]} 39. f3 {[%emt 0:00:30]} Re6 {[%emt 0:01:04]} 40. Nd3 {[%emt 0:00:31]} Ke7 {[%emt 0:00:30]} 41. Nf4 {[%emt 0:01:01]} Rc6 {[%emt 0:00:55]} 42. Nd5+ {[%emt 0:00:00]} Kd6 {[%emt 0:00:00]} 43. Ra5 {[%emt 0:00:00]} Rc5 {[%emt 0:00:00]} 44. Rxc5 {[%emt 0:00:00]} Kxc5 {[%emt 0:00:00]} 45. Ne3 {[%emt 0:00:00]} g6 {[%emt 0:00:00]} 46. Ke2 {[%emt 0:00:00]} Rb7 {[%emt 0:00:00]} 47. Kd3 {[%emt 0:00:00]} Rb3 {[%emt 0:00:00]} 48. Nc2 {[%emt 0:00:00]} a5 {[%emt 0:00:00]} 49. a4 {[%emt 0:00:00]} d5 {[%emt 0:00:00]} 50. g4 {[%emt 0:00:00]} Rb1 {[%emt 0:00:00]} 51. Ne3 {[%emt 0:00:00]} Rh1 {[%emt 0:00:00]} 52. h4 {[%emt 0:00:00]} Rxh4 {[%emt 0:00:00]} 53. Ng2 {[%emt 0:00:00]} Rh3 {[%emt 0:00:00]} 54. Ne1 {[%emt 0:00:00]} f5 {[%emt 0:00:00]} 0-1

[Event "CZE-ch U16 Girls 2020"]
[Site "Kouty nad Desnou"]
[Date "2020.03.11"]
[Round "6.1"]
[White "Vsetulova, Viktorie"]
[Black "Dvorakova, Olga"]
[Result "0-1"]
[ECO "A46"]
[WhiteElo "1334"]
[BlackElo "1793"]
[Annotator "NA RC"]
[PlyCount "58"]
[EventDate "2020.03.07"]
[EventCountry "CZE"]
[SourceTitle "playchess.com"]
[Source "ChessBase"]
[SourceQuality "1"]
[TimeControl "5400+30"]

1. d4 {[%emt 0:00:00]} Nf6 {[%emt 0:00:00]} 2. Nf3 {[%emt 0:00:00]} e6 {[%emt 0:00:00]} 3. Bf4 {[%emt 0:00:00]} c5 {[%emt 0:00:34]} 4. e3 {[%emt 0:00:24]} Qb6 {[%emt 0:01:20]} 5. Nc3 {[%emt 0:02:16]} cxd4 {[%emt 0:02:41]} 6. Nxd4 {[%emt 0:13:37]} a6 {[%emt 0:19:49]} 7. Nb3 {[%emt 0:06:49]} d5 {[%emt 0:06:15]} 8. Bd3 {[%emt 0:06:54]} Bd6 {[%emt 0:02:43]} 9. Bxd6 {[%emt 0:03:50]} Qxd6 {[%emt 0:00:07]} 10. Qf3 {[%emt 0:05:48]} Nbd7 {[%emt 0:10:47]} 11. Qh3 {[%emt 0:10:49]} b5 {[%emt 0:05:41]} 12. a3 {[%emt 0:03:41]} Nb6 {[%emt 0:04:08]} 13. O-O {[%emt 0:04:22]} O-O {[%emt 0:04:28]} 14. Nd2 {[%emt 0:04:16]} Nc4 {[%emt 0:03:29]} 15. Nxc4 {[%emt 0:01:52]} bxc4 {[%emt 0:02:07]} 16. Be2 {[%emt 0:00:53]} Rb8 {[%emt 0:02:11]} 17. Rab1 {[%emt 0:03:03]} e5 {[%emt 0:04:31]} 18. Qh4 {[%emt 0:01:46]} Bf5 {[%emt 0:00:55]} 19. Rfc1 {[%emt 0:02:34]} Rb7 {[%emt 0:02:19]} 20. h3 {[%emt 0:06:39]} Rfb8 {[%emt 0:01:37]} 21. Nd1 {[%emt 0:00:36]} Ne4 {[%emt 0:02:13]} 22. b4 {[%emt 0:06:26]} cxb3 {[%emt 0:02:56]} 23. cxb3 {[%emt 0:00:43]} Nd2 {[%emt 0:02:33]} 24. Rb2 {[%emt 0:02:36]} Nxb3 {[%emt 0:04:32]} 25. Rc3 {[%emt 0:02:34]} h6 {[%emt 0:02:48]} 26. a4 {[%emt 0:04:30]} d4 {[%emt 0:01:42]} 27. exd4 {[%emt 0:00:43]} Nxd4 {[%emt 0:00:12]} 28. Rxb7 {[%emt 0:04:22]} Nxe2+ {[%emt 0:00:13]} 29. Kh2 {[%emt 0:00:27]} Rxb7 {[%emt 0:00:25]} 0-1

[Event "CZE-ch U16 Girls 2020"]
[Site "Kouty nad Desnou"]
[Date "2020.03.11"]
[Round "6.2"]
[White "Leksova, Sona"]
[Black "Gregurkova, Nikola"]
[Result "0-1"]
[ECO "C68"]
[WhiteElo "1645"]
[BlackElo "1642"]
[Annotator "NA RC"]
[PlyCount "124"]
[EventDate "2020.03.07"]
[EventCountry "CZE"]
[SourceTitle "playchess.com"]
[Source "ChessBase"]
[SourceQuality "1"]
[TimeControl "5400+30"]

1. e4 {[%emt 0:00:00]} e5 {[%emt 0:00:00]} 2. Nf3 {[%emt 0:00:00]} Nc6 {[%emt 0:00:02]} 3. Bb5 {[%emt 0:00:46]} a6 {[%emt 0:02:10]} 4. Bxc6 {[%emt 0:00:24]} dxc6 {[%emt 0:00:52]} 5. O-O {[%emt 0:01:55]} Bg4 {[%emt 0:06:45]} 6. d3 {[%emt 0:02:06]} Qf6 {[%emt 0:08:31]} 7. Nbd2 {[%emt 0:07:17]} Ne7 {[%emt 0:06:36]} 8. h3 {[%emt 0:02:50]} h5 {[%emt 0:04:25]} 9. Re1 {[%emt 0:06:41]} Bxf3 {[%emt 0:26:04]} 10. Qxf3 {[%emt 0:03:58]} Qe6 {[%emt 0:05:56]} 11. Nb3 {[%emt 0:02:00]} Ng6 {[%emt 0:02:23]} 12. Be3 {[%emt 0:02:10]} O-O-O {[%emt 0:02:17]} 13. Rad1 {[%emt 0:03:39]} Bd6 {[%emt 0:04:21]} 14. Qf5 {[%emt 0:04:07]} Qxf5 {[%emt 0:02:09]} 15. exf5 {[%emt 0:00:10]} Ne7 {[%emt 0:01:48]} 16. g4 {[%emt 0:03:11]} hxg4 {[%emt 0:01:34]} 17. hxg4 {[%emt 0:00:21]} Rh4 {[%emt 0:02:57]} 18. f3 {[%emt 0:00:18]} Rdh8 {[%emt 0:02:02]} 19. Kf1 {[%emt 0:04:53]} Nd5 {[%emt 0:04:08]} 20. Bg1 {[%emt 0:02:34]} Nf4 {[%emt 0:03:50]} 21. Kf2 {[%emt 0:00:39]} Nh3+ {[%emt 0:03:24]} 22. Ke3 {[%emt 0:00:39]} Nxg1 {[%emt 0:01:45]} 23. Rxg1 {[%emt 0:00:17]} Rh2 {[%emt 0:01:20]} 24. Rc1 {[%emt 0:03:36]} Be7 {[%emt 0:03:10]} 25. g5 {[%emt 0:00:42]} R2h5 {[%emt 0:03:15]} 26. f4 {[%emt 0:05:28]} Rh3+ {[%emt 0:00:37]} 27. Ke4 {[%emt 0:00:34]} exf4 {[%emt 0:00:27]} 28. f6 {[%emt 0:03:49]} gxf6 {[%emt 0:00:31]} 29. gxf6 {[%emt 0:00:20]} Bxf6 {[%emt 0:00:30]} 30. Rcf1 {[%emt 0:02:39]} f3 {[%emt 0:00:31]} 31. Rxf3 {[%emt 0:03:54]} Rxf3 {[%emt 0:00:32]} 32. Kxf3 {[%emt 0:00:13]} Bxb2 {[%emt 0:00:32]} 33. Ke4 {[%emt 0:00:25]} b6 {[%emt 0:00:29]} 34. Rf1 {[%emt 0:00:39]} f6 {[%emt 0:00:26]} 35. Nd4 {[%emt 0:00:33]} Bxd4 {[%emt 0:00:23]} 36. Kxd4 {[%emt 0:00:18]} Rh6 {[%emt 0:00:36]} 37. c4 {[%emt 0:01:49]} c5+ {[%emt 0:00:34]} 38. Kd5 {[%emt 0:00:18]} Kd7 {[%emt 0:00:18]} 39. a4 {[%emt 0:01:07]} Rh5+ {[%emt 0:00:40]} 40. Ke4 {[%emt 0:00:18]} Ke6 {[%emt 0:00:30]} 41. Rd1 {[%emt 0:01:23]} a5 {[%emt 0:00:00]} 42. Kf3 {[%emt 0:00:00]} Rf5+ {[%emt 0:00:00]} 43. Ke4 {[%emt 0:00:00]} Re5+ {[%emt 0:00:00]} 44. Kf3 {[%emt 0:00:00]} Rf5+ {[%emt 0:00:00]} 45. Ke4 {[%emt 0:00:00]} Rf2 {[%emt 0:00:00]} 46. d4 {[%emt 0:00:00]} cxd4 {[%emt 0:00:00]} 47. Kxd4 {[%emt 0:00:00]} Ra2 {[%emt 0:00:00]} 48. Re1+ {[%emt 0:00:00]} Kd6 {[%emt 0:00:00]} 49. Rf1 {[%emt 0:00:00]} Rxa4 {[%emt 0:00:00]} 50. Rxf6+ {[%emt 0:00:00]} Ke7 {[%emt 0:00:00]} 51. Rc6 {[%emt 0:00:00]} Kd7 {[%emt 0:00:00]} 52. Kd5 {[%emt 0:00:00]} Ra1 {[%emt 0:00:00]} 53. Rh6 {[%emt 0:00:00]} Rd1+ {[%emt 0:00:00]} 54. Ke4 {[%emt 0:00:00]} Rd6 {[%emt 0:00:00]} 55. Rh5 {[%emt 0:00:00]} Kc6 {[%emt 0:00:00]} 56. Rb5 {[%emt 0:00:00]} Rd1 {[%emt 0:00:00]} 57. Ke3 {[%emt 0:00:00]} a4 {[%emt 0:00:43]} 58. Rb4 {[%emt 0:00:00]} a3 {[%emt 0:00:38]} 59. Ra4 {[%emt 0:00:00]} Ra1 {[%emt 0:00:12]} 60. Kd3 {[%emt 0:00:00]} a2 {[%emt 0:00:09]} 61. Kc3 {[%emt 0:00:00]} Rc1+ {[%emt 0:00:32]} 62. Kb2 {[%emt 0:00:00]} a1=Q+ {[%emt 0:00:16]} 0-1

[Event "CZE-ch U16 Girls 2020"]
[Site "Kouty nad Desnou"]
[Date "2020.03.11"]
[Round "6.3"]
[White "Dudova, Pavlina"]
[Black "Kuncicka, Klara"]
[Result "1-0"]
[ECO "C66"]
[WhiteElo "1499"]
[BlackElo "1223"]
[Annotator "NA RC"]
[PlyCount "95"]
[EventDate "2020.03.07"]
[EventCountry "CZE"]
[SourceTitle "playchess.com"]
[Source "ChessBase"]
[SourceQuality "1"]
[TimeControl "5400+30"]

1. e4 {[%emt 0:00:00]} e5 {[%emt 0:00:00]} 2. Nf3 {[%emt 0:00:00]} Nc6 {[%emt 0:00:00]} 3. Bb5 {[%emt 0:00:00]} d6 {[%emt 0:00:00]} 4. O-O {[%emt 0:00:12]} Nf6 {[%emt 0:00:13]} 5. Nc3 {[%emt 0:00:16]} Be7 {[%emt 0:00:10]} 6. d4 {[%emt 0:02:19]} exd4 {[%emt 0:02:03]} 7. Nxd4 {[%emt 0:00:57]} Bd7 {[%emt 0:00:11]} 8. Bxc6 {[%emt 0:07:17]} bxc6 {[%emt 0:00:06]} 9. b3 {[%emt 0:05:10]} O-O {[%emt 0:00:24]} 10. Bb2 {[%emt 0:01:00]} Re8 {[%emt 0:00:36]} 11. f4 {[%emt 0:02:59]} Bf8 {[%emt 0:12:42]} 12. Re1 {[%emt 0:06:09]} g6 {[%emt 0:11:52]} 13. Qf3 {[%emt 0:29:42]} Bg7 {[%emt 0:18:46]} 14. h3 {[%emt 0:07:53]} c5 {[%emt 0:04:34]} 15. Ndb5 {[%emt 0:02:03]} a6 {[%emt 0:00:50]} 16. Na3 {[%emt 0:00:49]} Bc6 {[%emt 0:01:52]} 17. Nc4 {[%emt 0:03:10]} Nxe4 {[%emt 0:09:09]} 18. Nxe4 {[%emt 0:01:21]} Bxe4 {[%emt 0:05:55]} 19. Rxe4 {[%emt 0:00:44]} Rxe4 {[%emt 0:00:24]} 20. Qxe4 {[%emt 0:00:23]} d5 {[%emt 0:00:23]} 21. Qe2 {[%emt 0:00:45]} dxc4 {[%emt 0:00:46]} 22. Bxg7 {[%emt 0:00:51]} Kxg7 {[%emt 0:00:10]} 23. Qxc4 {[%emt 0:00:45]} Qf6 {[%emt 0:01:56]} 24. Re1 {[%emt 0:02:34]} Qd6 {[%emt 0:06:09]} 25. Qe4 {[%emt 0:03:40]} Rd8 {[%emt 0:05:54]} 26. Qe5+ {[%emt 0:01:21]} Kg8 {[%emt 0:01:20]} 27. Qxd6 {[%emt 0:04:30]} Rxd6 {[%emt 0:00:16]} 28. Re5 {[%emt 0:00:14]} Rc6 {[%emt 0:00:36]} 29. c4 {[%emt 0:00:15]} Kf8 {[%emt 0:00:31]} 30. Kf2 {[%emt 0:00:48]} f6 {[%emt 0:00:26]} 31. Rd5 {[%emt 0:00:13]} Ke7 {[%emt 0:00:30]} 32. Kf3 {[%emt 0:01:18]} Ke8 {[%emt 0:02:55]} 33. f5 {[%emt 0:06:14]} Ke7 {[%emt 0:04:03]} 34. Kf4 {[%emt 0:01:51]} Ke8 {[%emt 0:01:13]} 35. h4 {[%emt 0:02:12]} Ke7 {[%emt 0:02:38]} 36. g4 {[%emt 0:03:24]} g5+ {[%emt 0:03:56]} 37. hxg5 {[%emt 0:00:45]} fxg5+ {[%emt 0:00:58]} 38. Kxg5 {[%emt 0:00:23]} h6+ {[%emt 0:00:54]} 39. Kf4 {[%emt 0:01:09]} Kf6 {[%emt 0:00:38]} 40. Rd7 {[%emt 0:00:52]} Rd6 {[%emt 0:01:21]} 41. Rxd6+ {[%emt 0:01:28]} cxd6 {[%emt 0:00:05]} 42. a3 {[%emt 0:00:22]} a5 {[%emt 0:01:27]} 43. a4 {[%emt 0:00:10]} Kf7 {[%emt 0:00:00]} 44. g5 {[%emt 0:00:00]} hxg5+ {[%emt 0:00:00]} 45. Kxg5 {[%emt 0:00:00]} Kg7 {[%emt 0:00:00]} 46. f6+ {[%emt 0:00:00]} Kf7 {[%emt 0:00:00]} 47. Kf5 {[%emt 0:00:00]} Kf8 {[%emt 0:00:00]} 48. Ke6 {[%emt 0:00:00]} 1-0

[Event "CZE-ch U16 Girls 2020"]
[Site "Kouty nad Desnou"]
[Date "2020.03.11"]
[Round "6.4"]
[White "Strnadova, Monika"]
[Black "Vavrinkova, Anna"]
[Result "0-1"]
[ECO "B32"]
[WhiteElo "1514"]
[BlackElo "1622"]
[Annotator "NA RC"]
[PlyCount "74"]
[EventDate "2020.03.07"]
[EventCountry "CZE"]
[SourceTitle "playchess.com"]
[Source "ChessBase"]
[SourceQuality "1"]
[TimeControl "5400+30"]

1. e4 {[%emt 0:00:00]} c5 {[%emt 0:00:44]} 2. Nf3 {[%emt 0:00:00]} Nc6 {[%emt 0:00:41]} 3. d4 {[%emt 0:00:00]} cxd4 {[%emt 0:01:12]} 4. Nxd4 {[%emt 0:00:09]} g6 {[%emt 0:00:57]} 5. Be3 {[%emt 0:00:29]} Nf6 {[%emt 0:01:25]} 6. Nc3 {[%emt 0:00:18]} Bg7 {[%emt 0:00:28]} 7. Be2 {[%emt 0:00:20]} O-O {[%emt 0:00:21]} 8. O-O {[%emt 0:00:08]} d5 {[%emt 0:01:27]} 9. Nxc6 {[%emt 0:09:11]} bxc6 {[%emt 0:00:23]} 10. exd5 {[%emt 0:00:51]} Nxd5 {[%emt 0:02:09]} 11. Nxd5 {[%emt 0:02:36]} cxd5 {[%emt 0:03:44]} 12. c3 {[%emt 0:02:57]} Rb8 {[%emt 0:09:19]} 13. Qd2 {[%emt 0:01:58]} Qd7 {[%emt 0:01:57]} 14. Bf3 {[%emt 0:02:10]} Ba6 {[%emt 0:04:31]} 15. Rfd1 {[%emt 0:02:47]} e6 {[%emt 0:00:20]} 16. b3 {[%emt 0:01:08]} Qe7 {[%emt 0:01:54]} 17. b4 {[%emt 0:02:20]} Rbc8 {[%emt 0:01:36]} 18. Bc5 {[%emt 0:04:31]} Qc7 {[%emt 0:01:01]} 19. Rac1 {[%emt 0:02:31]} Rfd8 {[%emt 0:00:51]} 20. Qe3 {[%emt 0:01:09]} Rd7 {[%emt 0:04:23]} 21. Bg4 {[%emt 0:02:43]} Bc4 {[%emt 0:02:19]} 22. a3 {[%emt 0:03:24]} Qb7 {[%emt 0:12:19]} 23. h4 {[%emt 0:04:12]} h5 {[%emt 0:06:15]} 24. Bh3 {[%emt 0:00:28]} Kh7 {[%emt 0:00:11]} 25. Ra1 {[%emt 0:04:51]} Bh6 {[%emt 0:01:43]} 26. Qe5 {[%emt 0:02:43]} Qc7 {[%emt 0:00:59]} 27. Qxc7 {[%emt 0:02:48]} Rcxc7 {[%emt 0:00:31]} 28. a4 {[%emt 0:01:05]} Bg7 {[%emt 0:04:09]} 29. Ra3 {[%emt 0:02:49]} Rd8 {[%emt 0:02:32]} 30. g3 {[%emt 0:03:50]} e5 {[%emt 0:03:21]} 31. Be3 {[%emt 0:11:00]} Bf6 {[%emt 0:05:21]} 32. Rc1 {[%emt 0:07:25]} Be7 {[%emt 0:02:58]} 33. Rd1 {[%emt 0:03:00]} Rb7 {[%emt 0:01:52]} 34. a5 {[%emt 0:02:04]} Rc7 {[%emt 0:02:16]} 35. Rd2 {[%emt 0:04:25]} d4 {[%emt 0:03:43]} 36. Bxd4 {[%emt 0:10:16]} exd4 {[%emt 0:00:18]} 37. cxd4 {[%emt 0:00:41]} Bxb4 {[%emt 0:00:10]} 0-1